bitfinex/quotes_BTCUSD_20220202
["timestamp","ask_amount","ask_price","bid_price","bid_amount"]
[1643770035752,0.00338981,38652.0,38651.0,0.448976]
[1643770035950,0.00338981,38652.0,38651.0,0.66788985]
[1643770036200,0.00338981,38652.0,38651.0,0.68622946]
[1643770036397,0.00338981,38652.0,38651.0,0.75088846]
[1643770036599,0.00338981,38652.0,38651.0,0.81554671]
[1643770040947,0.00338981,38652.0,38651.0,0.61497247]
[1643770045907,0.00328289,38652.0,38651.0,0.61497247]
[1643770046109,0.00328289,38652.0,38651.0,0.26599647]
[1643770046307,0.00328289,38652.0,38651.0,0.16599647]
[1643770046910,0.00328289,38652.0,38651.0,0.51497247]
[1643770059000,0.00328289,38652.0,38651.0,0.69183659]
[1643770059403,0.00328289,38652.0,38651.0,0.85855577]
[1643770059601,0.00328289,38652.0,38651.0,0.69183659]
[1643770059903,0.00328289,38652.0,38651.0,0.85855577]
[1643770060503,0.00328289,38652.0,38651.0,0.68169165]
[1643770060899,0.00328289,38652.0,38651.0,0.69256399]
[1643770061102,0.00328289,38652.0,38651.0,0.95928317]
[1643770061301,0.00328289,38652.0,38651.0,0.79256399]
[1643770061501,0.00328289,38652.0,38651.0,0.95928317]
[1643770066797,0.00328289,38652.0,38651.0,0.78169165]
[1643770067197,0.00328289,38652.0,38651.0,0.61497247]
[1643770067601,0.00328289,38652.0,38651.0,0.79286373]
[1643770067799,0.00328289,38652.0,38651.0,0.61497247]
[1643770068101,0.00328289,38652.0,38651.0,0.78169165]
[1643770068499,0.00328289,38652.0,38651.0,0.61497247]
[1643770069950,0.00322059,38652.0,38651.0,0.61497247]
[1643770070153,0.00133009,38653.0,38651.0,0.79098581]
[1643770070350,0.00133009,38653.0,38652.0,0.448976]
[1643770070551,0.00455068,38653.0,38652.0,0.448976]
[1643770070751,0.00455068,38653.0,38652.0,0.46731561]
[1643770070951,0.00455068,38653.0,38652.0,0.48565522]
[1643770071150,0.00322059,38653.0,38652.0,0.48565522]
[1643770076201,0.00322059,38653.0,38652.0,0.13667922]
[1643770076602,0.00322059,38653.0,38652.0,0.48565522]
[1643770076802,0.00322059,38653.0,38652.0,0.53565522]
[1643770079851,0.00322059,38653.0,38652.0,0.48565522]
[1643770080050,0.00322059,38653.0,38652.0,0.13667922]
[1643770080654,0.00322059,38653.0,38652.0,0.03667922]
[1643770084800,0.00307471,38653.0,38652.0,0.38565522]
[1643770085052,0.00133008,38654.0,38652.0,0.38565522]
[1643770085253,0.00307471,38653.0,38652.0,0.38565522]
[1643770085454,0.00307471,38653.0,38652.0,0.36731561]
[1643770085654,0.00307471,38653.0,38652.0,0.48565522]
[1643770086458,0.00307471,38653.0,38652.0,0.53565522]
[1643770086658,0.00307471,38653.0,38652.0,0.7195669]
[1643770087659,0.00307471,38653.0,38652.0,0.53565522]
[1643770087858,0.00307471,38653.0,38652.0,0.71154761]
[1643770088061,0.00307471,38653.0,38652.0,0.66154761]
[1643770088363,0.22394932,38653.0,38652.0,0.48565522]
[1643770088559,0.00307471,38653.0,38652.0,0.13667922]
[1643770088799,0.00307471,38653.0,38652.0,0.03667922]
[1643770089000,0.00307471,38653.0,38652.0,0.13667922]
[1643770089999,0.00307471,38653.0,38652.0,0.03667922]
[1643770097406,0.00307471,38653.0,38652.0,0.10134532]
[1643770098208,0.00307471,38653.0,38652.0,0.66032132]
[1643770098407,0.00307471,38653.0,38652.0,0.31134532]
[1643770098608,0.00307471,38653.0,38652.0,0.10134532]
[1643770102262,0.00307471,38653.0,38652.0,0.03667922]
[1643770102459,0.35205071,38653.0,38652.0,0.03667922]
[1643770103461,0.00307471,38653.0,38652.0,0.03667922]
[1643770106107,0.00307471,38653.0,38652.0,0.25667922]
[1643770106706,0.00307471,38653.0,38652.0,0.03667922]
[1643770108754,0.00297356,38653.0,38652.0,0.03667922]
[1643770109354,0.00297356,38653.0,38652.0,0.13156765]
[1643770109559,0.00297356,38653.0,38652.0,0.03667922]
[1643770114405,0.00297356,38653.0,38652.0,0.16601522]
[1643770115058,0.00297356,38653.0,38652.0,0.16101522]
[1643770115257,0.00297356,38653.0,38652.0,0.14767561]
[1643770115458,0.00297356,38653.0,38652.0,0.16101522]
[1643770116060,0.00297356,38653.0,38652.0,0.68669336]
[1643770116459,0.00297356,38653.0,38652.0,0.50999122]
[1643770117061,0.00297356,38653.0,38652.0,0.16101522]
[1643770119914,0.00297356,38653.0,38652.0,0.03167922]
[1643770126061,0.00133177,38654.0,38652.0,0.03167922]
[1643770126306,0.01718537,38655.0,38653.0,0.064676]
[1643770126707,0.01718537,38655.0,38654.0,0.03167922]
[1643770126906,0.001,38656.0,38654.0,0.03167922]
[1643770127106,0.348976,38655.0,38654.0,0.03167922]
[1643770127709,0.001,38656.0,38654.0,0.03167922]
[1643770128309,0.348976,38655.0,38654.0,0.03167922]
[1643770128509,0.001,38656.0,38654.0,0.03167922]
[1643770129611,0.001,38656.0,38654.0,0.03159557]
[1643770131557,0.001,38656.0,38654.0,0.09626557]
[1643770131757,0.001,38656.0,38654.0,0.06467]
[1643770131957,0.001,38656.0,38655.0,0.01325596]
[1643770132157,0.001,38656.0,38655.0,0.03159557]
[1643770145564,0.03775308,38658.0,38655.0,0.03159557]
[1643770145962,0.03775308,38658.0,38654.0,0.064674]
[1643770146163,0.02056771,38658.0,38656.0,0.01833961]
[1643770146362,0.02056771,38658.0,38656.0,0.03159557]
[1643770146564,0.348976,38657.0,38656.0,0.03159557]
[1643770149110,0.398976,38657.0,38656.0,0.03159557]
[1643770149511,0.4385077,38657.0,38656.0,0.03159557]
[1643770154659,0.398976,38657.0,38656.0,0.03159557]
[1643770157504,0.02056771,38658.0,38656.0,0.03159557]
[1643770157706,0.02056771,38658.0,38656.0,0.09626557]
[1643770158006,0.02056771,38658.0,38656.0,0.06467]
[1643770158304,0.02056771,38658.0,38657.0,0.03159557]
[1643770158507,0.36954371,38658.0,38657.0,0.03159557]
[1643770164315,0.60474172,38658.0,38657.0,0.03159557]
[1643770164619,0.65396691,38658.0,38657.0,0.03159557]
[1643770164817,0.60474172,38658.0,38657.0,0.03159557]
[1643770165621,0.7933023,38658.0,38657.0,0.03159557]
[1643770167020,0.78593448,38658.0,38657.0,0.03159557]
[1643770168458,0.83593448,38658.0,38657.0,0.03159557]
[1643770170463,0.60073647,38658.0,38657.0,0.03159557]
[1643770170863,0.41954371,38658.0,38657.0,0.03159557]
[1643770180707,0.41945109,38658.0,38657.0,0.03159557]
[1643770181409,0.68870096,38658.0,38657.0,0.03159557]
[1643770181609,0.41945109,38658.0,38657.0,0.03159557]
[1643770182011,0.07047509,38658.0,38657.0,0.03159557]
[1643770182657,0.36945109,38658.0,38657.0,0.03159557]
[1643770183058,0.41945109,38658.0,38657.0,0.03159557]
[1643770188613,0.02047509,38658.0,38657.0,0.03159557]
[1643770188811,0.07047509,38658.0,38657.0,0.03159557]
[1643770189010,0.41945109,38658.0,38657.0,0.03159557]
[1643770189210,0.36945109,38658.0,38657.0,0.03159557]
[1643770189413,0.41945109,38658.0,38657.0,0.03159557]
[1643770199963,0.60877621,38658.0,38657.0,0.03159557]
[1643770200164,0.6529096,38658.0,38657.0,0.03159557]
[1643770200366,2.03177621,38658.0,38657.0,0.03159557]
[1643770202211,1.84245109,38658.0,38657.0,0.03159557]
[1643770203310,1.89245109,38658.0,38657.0,0.03159557]
[1643770204715,0.114695,38655.0,38641.0,0.3929]
[1643770204978,0.114695,38655.0,38642.0,0.19835636]
[1643770204979,1.371,38652.0,38642.0,0.19835636]
[1643770205176,0.348976,38651.0,38647.0,0.02]
[1643770205377,1.423,38650.0,38647.0,0.02]
[1643770205581,1.62839789,38648.0,38647.0,0.02]
[1643770205777,0.70837389,38648.0,38647.0,0.02]
[1643770206178,0.70837389,38648.0,38640.0,0.1139]
[1643770206379,0.35939789,38648.0,38640.0,0.1139]
[1643770206578,1.73039789,38648.0,38640.0,0.1139]
[1643770206779,1.73039789,38648.0,38642.0,0.01825719]
[1643770206979,0.56941242,38647.0,38642.0,0.01825719]
[1643770207179,0.56941242,38647.0,38643.0,0.02]
[1643770207380,0.0646986,38646.0,38643.0,0.02]
[1643770207580,0.52925849,38645.0,38643.0,0.0206258]
[1643770207879,0.17673042,38644.0,38643.0,0.0206258]
[1643770208083,0.52570642,38644.0,38643.0,0.0006258]
[1643770208280,0.53456523,38644.0,38643.0,0.0006258]
[1643770208579,0.348976,38644.0,38642.0,0.01825719]
[1643770208811,0.25212114,38646.0,38642.0,0.01950628]
[1643770209012,0.25212114,38646.0,38642.0,0.00124909]
[1643770209209,0.24930651,38646.0,38642.0,0.02124909]
[1643770209910,0.24930651,38646.0,38642.0,0.02]
[1643770210111,0.24930651,38646.0,38642.0,0.02124908]
[1643770210112,1.771976,38645.0,38642.0,0.02124908]
[1643770210310,0.1959154,38644.0,38642.0,0.02124908]
[1643770210520,1.771976,38643.0,38642.0,0.02124908]
[1643770210913,1.821976,38643.0,38642.0,0.02124908]
[1643770211212,1.821976,38643.0,38641.0,0.00124912]
[1643770211415,2.09313703,38642.0,38641.0,0.00124912]
[1643770211613,2.64411303,38642.0,38641.0,0.00124912]
[1643770212013,2.67833628,38642.0,38641.0,0.00124912]
[1643770212210,0.09622163,38640.0,38631.0,0.1217]
[1643770212463,0.23142448,38632.0,38625.0,0.12719928]
[1643770212663,0.348976,38631.0,38625.0,0.01249928]
[1643770212872,1.719976,38631.0,38625.0,0.01249928]
[1643770213267,0.23771207,38628.0,38626.0,0.02]
[1643770213463,0.348976,38627.0,38626.0,0.02]
[1643770213663,0.348976,38627.0,38626.0,0.0206248]
[1643770213664,0.398976,38627.0,38626.0,0.0206248]
[1643770213866,0.398976,38627.0,38621.0,0.01]
[1643770213867,0.48,38625.0,38621.0,0.01]
[1643770214165,0.400976,38624.0,38621.0,0.01]
[1643770214664,0.25108699,38623.0,38621.0,0.01]
[1643770214867,0.348976,38622.0,38621.0,0.01]
[1643770215066,0.450976,38622.0,38621.0,0.01]
[1643770216064,0.64452482,38622.0,38621.0,0.01]
[1643770217919,0.68464195,38622.0,38621.0,0.01]
[1643770219524,0.6699262,38622.0,38621.0,0.01]
[1643770219725,0.49109313,38622.0,38621.0,0.01]
[1643770219963,0.14211713,38622.0,38621.0,0.01]
[1643770220765,0.09211713,38622.0,38621.0,0.01]
[1643770221564,0.09211713,38622.0,38620.0,0.00096618]
[1643770221766,0.09211713,38622.0,38619.0,0.02]
[1643770221965,0.09211713,38622.0,38619.0,0.0210293]
[1643770222165,0.09211713,38622.0,38619.0,0.0010293]
[1643770223067,0.04011713,38622.0,38618.0,0.02]
[1643770223266,0.00586668,38623.0,38619.0,0.00102932]
[1643770224212,0.00586668,38623.0,38618.0,0.02]
[1643770224414,0.00586668,38623.0,38619.0,0.0010293]
[1643770225213,0.00586668,38623.0,38620.0,2.34188586]
[1643770225613,0.00586668,38623.0,38619.0,0.0010151]
[1643770226613,0.23088522,38623.0,38618.0,0.02]
[1643770226812,0.23088522,38623.0,38619.0,0.0010151]
[1643770227865,0.23088522,38623.0,38618.0,0.02]
[1643770228065,0.23088522,38623.0,38619.0,0.0010151]
[1643770228465,0.17755052,38622.0,38619.0,0.0010151]
[1643770228666,0.22952868,38622.0,38619.0,0.0010151]
[1643770228867,0.348976,38621.0,38619.0,0.0010151]
[1643770229069,0.17784993,38620.0,38618.0,0.02]
[1643770229266,0.17784993,38620.0,38619.0,0.00101831]
[1643770229468,0.18228613,38622.0,38619.0,0.00101831]
[1643770229668,0.29,38621.0,38618.0,0.01601831]
[1643770230167,0.29,38621.0,38617.0,0.00398168]
[1643770230769,0.00281463,38622.0,38617.0,0.00398168]
[1643770231218,0.01718537,38622.0,38617.0,0.01601832]
[1643770232112,0.01718537,38622.0,38617.0,0.08075132]
[1643770232513,0.01718537,38622.0,38617.0,0.01601832]
[1643770232914,0.01718537,38622.0,38617.0,0.01725999]
[1643770235061,0.01718537,38622.0,38617.0,0.08075132]
[1643770235261,0.01718537,38622.0,38617.0,0.14672799]
[1643770236265,0.01718537,38622.0,38617.0,0.14548632]
[1643770236566,0.01718537,38622.0,38617.0,0.14672799]
[1643770237365,0.01718537,38622.0,38617.0,0.14548632]
[1643770237564,0.01718537,38622.0,38617.0,0.14672799]
[1643770237764,0.01218537,38622.0,38617.0,0.14672799]
[1643770238717,0.01218537,38622.0,38617.0,0.14548632]
[1643770238910,0.01218537,38622.0,38617.0,0.14672799]
[1643770239911,0.01218537,38622.0,38617.0,0.14548632]
[1643770240111,0.01218537,38622.0,38617.0,0.14672799]
[1643770241113,0.01218537,38622.0,38617.0,0.14548632]
[1643770241315,0.01218537,38622.0,38617.0,0.14672799]
[1643770243471,0.01218537,38622.0,38617.0,0.14548632]
[1643770243670,0.01218537,38622.0,38617.0,0.14672799]
[1643770244574,0.01218537,38622.0,38617.0,0.14548632]
[1643770244772,0.01218537,38622.0,38617.0,0.14672799]
[1643770247013,0.01218537,38622.0,38617.0,0.14548632]
[1643770247216,0.01218537,38622.0,38617.0,0.14672799]
[1643770248215,0.01218537,38622.0,38617.0,0.14548632]
[1643770248415,0.01218537,38622.0,38617.0,0.14672799]
[1643770249415,0.01218537,38622.0,38617.0,0.14548632]
[1643770249615,0.01218537,38622.0,38617.0,0.14672799]
[1643770250666,0.01218537,38622.0,38617.0,0.14548632]
[1643770250867,0.01218537,38622.0,38617.0,0.14672799]
[1643770251765,0.01218537,38622.0,38617.0,0.14548632]
[1643770251968,0.01218537,38622.0,38617.0,0.14672799]
[1643770254221,0.01218537,38622.0,38617.0,0.14548632]
[1643770254418,0.01218537,38622.0,38617.0,0.14672799]
[1643770255420,0.30081716,38622.0,38617.0,0.14548632]
[1643770255620,0.30081716,38622.0,38617.0,0.14172799]
[1643770256722,0.01218537,38622.0,38617.0,0.14048632]
[1643770256921,0.01218537,38622.0,38617.0,0.14172799]
[1643770258973,0.01218537,38622.0,38617.0,0.14048632]
[1643770259173,0.01218537,38622.0,38617.0,0.14172799]
[1643770260274,0.01218537,38622.0,38617.0,0.14048632]
[1643770260474,0.01218537,38622.0,38617.0,0.14172799]
[1643770261419,0.01218537,38622.0,38617.0,0.14048632]
[1643770261618,0.01218537,38622.0,38617.0,0.14172799]
[1643770262622,0.01218537,38622.0,38617.0,0.14048632]
[1643770262819,0.01218537,38622.0,38617.0,0.14172799]
[1643770263819,0.01218537,38622.0,38617.0,0.14048632]
[1643770264021,0.01218537,38622.0,38617.0,0.14172799]
[1643770265063,0.01218537,38622.0,38618.0,0.348976]
[1643770265265,0.01218537,38622.0,38617.0,0.14172799]
[1643770265463,0.01218537,38622.0,38618.0,0.348976]
[1643770265763,0.01218537,38622.0,38617.0,0.14172799]
[1643770266165,0.01218537,38622.0,38617.0,0.14048632]
[1643770266565,0.01218537,38622.0,38617.0,0.14172799]
[1643770269817,0.01218537,38622.0,38617.0,0.14048632]
[1643770270017,0.01218537,38622.0,38617.0,0.14172799]
[1643770271017,0.01218537,38622.0,38617.0,0.14048632]
[1643770271317,0.01218537,38622.0,38617.0,0.14172799]
[1643770271916,0.01218537,38622.0,38617.0,0.08199299]
[1643770272318,0.01218537,38622.0,38617.0,0.08075132]
[1643770272574,0.01218537,38622.0,38617.0,0.08199299]
[1643770274676,0.01218537,38622.0,38617.0,0.08075132]
[1643770274876,0.01218537,38622.0,38617.0,0.08199299]
[1643770275877,0.01218537,38622.0,38617.0,0.08075132]
[1643770276076,0.01218537,38622.0,38617.0,0.08199299]
[1643770277120,0.01218537,38622.0,38617.0,0.08075132]
[1643770277321,0.01218537,38622.0,38617.0,0.08171361]
[1643770279420,0.01218537,38622.0,38617.0,0.08075132]
[1643770279621,0.01218537,38622.0,38617.0,0.08171361]
[1643770280068,0.01210704,38622.0,38617.0,0.08171361]
[1643770280670,0.01210704,38622.0,38617.0,0.08075132]
[1643770280868,0.01210704,38622.0,38617.0,0.08171361]
[1643770281870,0.01210704,38622.0,38617.0,0.08075132]
[1643770282072,0.01210704,38622.0,38617.0,0.08177647]
[1643770282970,0.01210704,38622.0,38617.0,0.08075132]
[1643770283173,0.01210704,38622.0,38617.0,0.08177647]
[1643770284220,0.01210704,38622.0,38617.0,0.08075132]
[1643770284413,0.01210704,38622.0,38618.0,0.064731]
[1643770284614,0.01210704,38622.0,38619.0,0.129463]
[1643770285213,0.01375964,38623.0,38619.0,0.129463]
[1643770286014,0.00586668,38623.0,38619.0,0.129463]
[1643770290368,0.01210704,38624.0,38620.0,0.348976]
[1643770290567,0.01210704,38624.0,38620.0,0.543142]
[1643770290766,0.01210704,38624.0,38621.0,0.181422]
[1643770290971,0.12501084,38636.0,38621.0,0.181422]
[1643770290972,0.12501084,38636.0,38622.0,0.828976]
[1643770290973,0.00111084,38636.0,38622.0,0.828976]
[1643770291230,0.00111084,38636.0,38633.0,0.35115145]
[1643770291626,0.01,38641.0,38634.0,0.348976]
[1643770291825,0.00111096,38636.0,38635.0,0.052]
[1643770292624,0.02,38638.0,38635.0,0.052]
[1643770292924,0.00121927,38637.0,38635.0,0.052]
[1643770293925,0.26281936,38639.0,38635.0,0.052]
[1643770294125,0.00121927,38638.0,38635.0,0.052]
[1643770295165,0.15537777,38640.0,38635.0,0.052]
[1643770295366,0.22427124,38636.0,38635.0,0.052]
[1643770295670,0.27427124,38636.0,38634.0,0.01601832]
[1643770296070,0.33898712,38636.0,38634.0,0.01601832]
[1643770296469,0.25215731,38635.0,38634.0,0.01601832]
[1643770296667,0.56297337,38635.0,38634.0,0.01601832]
[1643770298268,0.56297337,38635.0,38629.0,0.1219]
[1643770298468,0.06471932,38634.0,38626.0,0.129425]
[1643770298920,0.06471932,38634.0,38626.0,0.194143]
[1643770299119,0.06471932,38634.0,38628.0,0.02]
[1643770299521,0.06471932,38634.0,38628.0,0.01404658]
[1643770300126,0.22230193,38629.0,38628.0,0.01404658]
[1643770301228,0.22230193,38629.0,38626.0,0.00595342]
[1643770301626,0.10432735,38628.0,38626.0,0.00595342]
[1643770302026,0.15432735,38628.0,38625.0,0.01404658]
[1643770302466,0.05,38628.0,38625.0,0.01404658]
[1643770302667,0.27230193,38629.0,38625.0,0.01404658]
[1643770303469,0.03156895,38626.0,38625.0,0.01404658]
[1643770304268,0.21440937,38624.0,38623.0,0.20011142]
[1643770305070,0.21440937,38624.0,38623.0,0.194158]
[1643770305369,0.27230193,38629.0,38623.0,0.194158]
[1643770306224,0.29230193,38629.0,38623.0,0.194158]
[1643770306423,0.25787078,38625.0,38623.0,0.194158]
[1643770306621,0.00586466,38625.0,38623.0,0.194158]
[1643770321715,0.00575777,38625.0,38623.0,0.194158]
[1643770322816,0.0029986,38625.0,38623.0,0.194158]
[1643770326570,0.07,38629.0,38624.0,0.52268281]
[1643770326770,0.07,38629.0,38626.0,0.064716]
[1643770326771,0.02,38629.0,38626.0,0.064716]
[1643770327071,0.02,38629.0,38627.0,0.720174]
[1643770327270,0.00115223,38636.0,38628.0,0.80766074]
[1643770327473,0.3879,38639.0,38629.0,0.63486951]
[1643770327669,0.0011523,38636.0,38631.0,0.0868387]
[1643770327868,0.0011523,38636.0,38632.0,0.52972842]
[1643770328070,0.0011523,38636.0,38632.0,0.72382642]
[1643770328470,0.0011523,38636.0,38632.0,0.737873]
[1643770328724,0.02,38637.0,38632.0,0.673173]
[1643770328919,0.0010878,38636.0,38632.0,0.01404658]
[1643770329818,0.28734889,38633.0,38632.0,0.01404658]
[1643770330219,0.28734889,38633.0,38631.0,0.06471]
[1643770330418,0.0010878,38636.0,38631.0,0.06471]
[1643770331223,0.02,38637.0,38631.0,0.07875658]
[1643770331422,0.28822178,38634.0,38631.0,0.07875658]
[1643770331820,0.28822178,38634.0,38631.0,0.09934333]
[1643770332023,0.09061705,38633.0,38631.0,0.09934333]
[1643770332220,0.09061705,38633.0,38631.0,0.08529675]
[1643770333671,0.28822178,38634.0,38631.0,0.08529675]
[1643770334572,0.28822178,38634.0,38631.0,0.06471]
[1643770335374,0.28822178,38634.0,38631.0,0.129417]
[1643770335573,0.00109487,38636.0,38631.0,0.30229687]
[1643770335774,0.00109487,38636.0,38633.0,0.064706]
[1643770335974,0.02,38637.0,38633.0,0.064706]
[1643770336223,0.00109429,38636.0,38633.0,0.064706]
[1643770336419,0.0069576,38636.0,38633.0,0.064706]
[1643770337019,0.0069576,38636.0,38634.0,0.064702]
[1643770337219,0.00586331,38636.0,38635.0,0.064705]
[1643770337419,0.00695759,38636.0,38635.0,0.064705]
[1643770338421,0.00586331,38636.0,38635.0,0.064705]
[1643770341468,0.00586331,38636.0,38635.0,0.054705]
[1643770342370,0.41586331,38636.0,38635.0,0.054705]
[1643770342570,0.41586331,38636.0,38633.0,0.129406]
[1643770342869,0.46586331,38636.0,38631.0,0.064713]
[1643770343073,0.17754731,38635.0,38631.0,0.064713]
[1643770343469,0.17754731,38635.0,38630.0,0.03594832]
[1643770343728,0.26625168,38631.0,38630.0,0.03594832]
[1643770344120,0.26625168,38631.0,38630.0,0.01404658]
[1643770345625,0.26625168,38631.0,38629.0,0.064716]
[1643770347772,0.02,38633.0,38629.0,0.064716]
[1643770348176,0.00695899,38636.0,38629.0,0.064716]
[1643770348775,0.30947219,38632.0,38629.0,0.064716]
[1643770349578,0.02,38633.0,38630.0,0.348976]
[1643770349777,0.02,38633.0,38631.0,0.17660869]
[1643770350178,0.006959,38636.0,38632.0,0.129408]
[1643770350377,0.00586331,38636.0,38632.0,0.194111]
[1643770350580,0.00695745,38636.0,38632.0,0.194111]
[1643770350782,0.00695745,38636.0,38633.0,0.348976]
[1643770350978,0.00695745,38636.0,38634.0,0.17665738]
[1643770351222,0.00695745,38636.0,38635.0,0.348976]
[1643770351418,0.00695745,38636.0,38634.0,0.348976]
[1643770351616,0.00586331,38636.0,38634.0,0.348976]
[1643770351817,0.00586331,38636.0,38634.0,0.413678]
[1643770352219,0.00586331,38636.0,38635.0,0.19154525]
[1643770352518,0.00109414,38637.0,38635.0,0.85129325]
[1643770352718,0.02,38638.0,38636.0,0.348976]
[1643770352919,0.00109414,38637.0,38636.0,0.57678884]
[1643770353120,0.00109414,38637.0,38636.0,0.66400937]
[1643770353520,0.00109414,38637.0,38636.0,0.71400937]
[1643770353920,0.0058649,38647.0,38636.0,0.64931637]
[1643770354126,0.02,38644.0,38640.0,0.064682]
[1643770354320,0.02,38644.0,38641.0,0.64969222]
[1643770354820,0.02,38644.0,38642.0,0.1]
[1643770355069,0.02,38644.0,38643.0,0.400976]
[1643770355270,0.0058649,38647.0,38644.0,0.064684]
[1643770355470,0.00109421,38645.0,38644.0,0.064684]
[1643770355670,0.00109421,38645.0,38644.0,0.41366]
[1643770356373,0.0258649,38647.0,38644.0,0.41366]
[1643770356572,0.00109419,38646.0,38644.0,0.064684]
[1643770357671,0.0058649,38647.0,38644.0,0.064684]
[1643770357872,0.00695906,38647.0,38644.0,0.064684]
[1643770358474,0.24874814,38647.0,38644.0,0.064684]
[1643770358728,0.24874814,38647.0,38641.0,0.01404658]
[1643770358729,0.24765398,38647.0,38641.0,0.01404658]
[1643770359023,0.24874814,38647.0,38641.0,0.01404658]
[1643770359825,0.24874814,38647.0,38642.0,0.064688]
[1643770360025,0.24765398,38647.0,38642.0,0.064688]
[1643770360226,0.00109417,38646.0,38642.0,0.064688]
[1643770360428,0.00109417,38646.0,38643.0,0.69526153]
[1643770360628,0.00109417,38646.0,38644.0,0.129362]
[1643770360827,0.00109417,38646.0,38645.0,0.348976]
[1643770361030,0.00109417,38646.0,38644.0,0.129362]
[1643770361227,0.0058649,38647.0,38644.0,0.129362]
[1643770361431,0.0058649,38647.0,38644.0,0.194041]
[1643770361432,0.00695906,38647.0,38644.0,0.194041]
[1643770362471,0.0058649,38647.0,38644.0,0.194041]
[1643770362671,0.00695906,38647.0,38644.0,0.194041]
[1643770362871,0.00695906,38647.0,38644.0,0.246041]
[1643770363274,0.00695906,38647.0,38644.0,0.129362]
[1643770363682,0.23502386,38645.0,38642.0,0.064692]
[1643770363873,0.23502386,38645.0,38642.0,0.08627711]
[1643770364074,0.23493894,38645.0,38642.0,0.064692]
[1643770364974,0.23603312,38645.0,38642.0,0.064692]
[1643770365774,0.00109418,38645.0,38642.0,0.064692]
[1643770365974,0.0058649,38647.0,38642.0,0.064692]
[1643770366223,0.00109418,38645.0,38642.0,0.064692]
[1643770366817,0.2787906,38645.0,38642.0,0.064692]
[1643770367218,0.27769642,38645.0,38642.0,0.064692]
[1643770367520,0.00109418,38645.0,38642.0,0.064692]
[1643770368419,0.0058649,38647.0,38642.0,0.064692]
[1643770368618,0.00109418,38645.0,38642.0,0.064692]
[1643770369519,0.2775595,38646.0,38642.0,0.064692]
[1643770369719,0.00109418,38645.0,38642.0,0.064692]
[1643770370774,0.2775595,38646.0,38642.0,0.064692]
[1643770370975,0.00109418,38645.0,38642.0,0.064692]
[1643770371175,0.00109418,38645.0,38642.0,0.054692]
[1643770371875,0.00109418,38645.0,38644.0,0.129362]
[1643770372075,0.0058649,38647.0,38644.0,0.65212874]
[1643770372274,0.00109418,38645.0,38644.0,0.30315274]
[1643770372475,0.00109418,38645.0,38644.0,0.65212874]
[1643770373275,0.0058649,38647.0,38645.0,0.064678]
[1643770373478,0.00109417,38646.0,38645.0,0.24449256]
[1643770373725,0.00109417,38646.0,38645.0,0.58726155]
[1643770374219,0.00109417,38646.0,38645.0,0.63926155]
[1643770374420,0.0058649,38647.0,38645.0,0.63926155]
[1643770374619,0.00695906,38647.0,38646.0,0.348976]
[1643770375621,0.0058649,38647.0,38646.0,0.348976]
[1643770375821,0.0058649,38647.0,38646.0,0.6247405]
[1643770378976,0.0058649,38647.0,38646.0,0.448976]
[1643770380277,0.0058649,38647.0,38646.0,0.63319973]
[1643770380777,0.0058649,38647.0,38646.0,0.448976]
[1643770383746,0.0058649,38647.0,38646.0,0.62526845]
[1643770383947,0.02,38649.0,38646.0,0.67526845]
[1643770384149,0.02,38649.0,38648.0,0.064667]
[1643770384348,0.202,38650.0,38648.0,0.98607359]
[1643770384551,0.202,38650.0,38649.0,0.21636906]
[1643770384746,0.202,38650.0,38649.0,0.71734506]
[1643770387977,0.202,38650.0,38649.0,0.76734506]
[1643770389222,0.202,38650.0,38649.0,0.96132706]
[1643770390221,0.202,38650.0,38649.0,1.46132706]
[1643770391024,0.203,38650.0,38649.0,1.46132706]
[1643770391223,0.2029382,38650.0,38649.0,1.46132706]
[1643770395479,0.002,38653.0,38649.0,1.46132706]
[1643770395480,0.002,38653.0,38651.0,0.48]
[1643770395681,0.002,38653.0,38652.0,0.76079692]
[1643770395881,0.002,38653.0,38652.0,0.91079692]
[1643770396325,0.002,38653.0,38652.0,1.48908623]
[1643770396822,0.002,38653.0,38652.0,1.32980187]
[1643770398323,0.002,38653.0,38652.0,1.82980187]
[1643770401176,0.02,38655.0,38654.0,0.673938]
[1643770401375,0.02,38655.0,38654.0,1.45278132]
[1643770401576,0.02,38655.0,38654.0,1.45934555]
[1643770401974,0.02,38655.0,38654.0,0.97934555]
[1643770402175,0.002,38657.0,38655.0,0.064652]
[1643770402378,0.002,38657.0,38655.0,0.565628]
[1643770402575,0.002,38657.0,38655.0,0.74072159]
[1643770403274,0.002,38657.0,38655.0,1.24072159]
[1643770403728,0.002,38657.0,38655.0,0.74072159]
[1643770404523,0.00333556,38657.0,38655.0,0.74072159]
[1643770405623,0.002,38657.0,38655.0,0.74072159]
[1643770405824,0.00333556,38657.0,38655.0,0.74072159]
[1643770406023,0.00333556,38657.0,38655.0,1.24072159]
[1643770406824,0.002,38657.0,38655.0,1.24072159]
[1643770407025,0.00333556,38657.0,38655.0,1.24072159]
[1643770407875,0.002,38657.0,38655.0,1.24072159]
[1643770408276,0.00319499,38657.0,38655.0,1.24072159]
[1643770409277,0.002,38657.0,38655.0,1.24072159]
[1643770409478,0.00319499,38657.0,38655.0,1.24072159]
[1643770410479,0.002,38657.0,38655.0,1.24072159]
[1643770410679,0.00319499,38657.0,38655.0,1.24072159]
[1643770411629,0.002,38657.0,38655.0,1.24072159]
[1643770411929,0.00322662,38657.0,38655.0,1.24072159]
[1643770412729,0.002,38657.0,38655.0,1.24072159]
[1643770412929,0.00322662,38657.0,38655.0,1.24072159]
[1643770413929,0.002,38657.0,38655.0,1.24072159]
[1643770414131,0.00322662,38657.0,38655.0,1.24072159]
[1643770415176,0.00077338,38660.0,38655.0,1.24072159]
[1643770415382,0.001,38666.0,38655.0,1.24072159]
[1643770415383,0.001,38666.0,38658.0,0.064641]
[1643770415578,0.001,38666.0,38660.0,0.6497]
[1643770415579,0.00587698,38666.0,38660.0,0.6497]
[1643770415779,0.00587698,38666.0,38661.0,0.500976]
[1643770415979,0.00587698,38666.0,38661.0,0.59387799]
[1643770416179,0.00587698,38666.0,38661.0,0.59376382]
[1643770416381,0.0007794,38666.0,38665.0,0.48]
[1643770416579,0.0007794,38666.0,38665.0,1.09962691]
[1643770416778,0.0007794,38666.0,38665.0,1.19962691]
[1643770416978,0.0007794,38666.0,38665.0,1.23279691]
[1643770417579,0.0007794,38666.0,38665.0,1.50522422]
[1643770418479,0.0007794,38666.0,38665.0,1.29742991]
[1643770420031,0.0007794,38666.0,38665.0,1.128779]